bitfinex/quotes_SOLUSD_20240725
["timestamp","ask_amount","ask_price","bid_price","bid_amount"]
[1721912947316,388.24030919,166.91,166.85,5.9931]
[1721912947718,388.24030919,166.92,166.85,5.9932]
[1721912947923,5.992,166.89,166.81,5.9945]
[1721912948226,388.24030919,166.92,166.87,5.9925]
[1721912948414,12.4819,166.94,166.87,5.9925]
[1721912948925,6.4917,166.94,166.86,20.9748]
[1721912949119,388.24030919,166.95,166.86,14.9822]
[1721912949319,388.24030919,166.95,166.89,14.9791]
[1721912949928,388.24030919,166.95,166.92,5.9908]
[1721912950227,388.24030919,166.95,166.89,36.4311]
[1721912950418,388.24030919,166.95,166.93,5.9904]
[1721912953653,0.40947338,166.98,166.87,14.9813]
[1721912953855,5.9902,166.94,166.87,20.9739]
[1721912954077,51.40007338,166.93,166.87,14.9813]
[1721912954351,45.0,166.93,166.87,14.9813]
[1721912954524,45.0,166.94,166.87,14.9813]
[1721912954729,45.0,166.95,166.87,14.9813]
[1721912954930,45.0,166.95,166.91,5.9911]
[1721912955232,45.0,166.95,166.9,14.9787]
[1721912955448,45.0,166.95,166.9,20.9702]
[1721912955652,388.24030919,166.96,166.9,14.9787]
[1721912955965,5.9879,167.01,166.94,5.99]
[1721912956253,394.22820919,167.01,166.94,5.99]
[1721912956437,5.9881,167.0,166.93,14.976]
[1721912956640,5.9881,167.0,166.93,20.9663]
[1721912956829,5.9881,167.0,166.94,5.9901]
[1721912957150,388.24030919,167.01,166.95,5.9896]
[1721912957367,394.22790919,167.01,166.93,14.976]
[1721912957554,388.24030919,167.01,166.95,5.9897]
[1721912957741,388.24030919,167.01,166.9,6.4459]
[1721912957742,0.40947338,167.0,166.9,6.4459]
[1721912957940,5.9895,166.96,166.9,12.4374]
[1721912958125,0.40947338,167.0,166.89,20.9707]
[1721912958323,14.9724,166.98,166.86,6.3677]
[1721912958550,388.24030919,166.97,166.88,14.9807]
[1721912958861,388.24030919,166.97,166.88,16.17876301]
[1721912959030,388.24030919,166.97,166.88,14.9807]
[1721912959557,388.24030919,166.97,166.92,5.9908]
[1721912959865,388.24030919,166.97,166.93,5.9902]
[1721912960041,388.24030919,167.02,166.9,49.9574]
[1721912960239,5.988,167.0,166.93,14.9755]
[1721912960557,5.9876,167.01,166.94,5.99]
[1721912960754,394.22780919,167.02,166.93,14.9755]
[1721912961053,5.9881,167.0,166.93,14.9755]
[1721912961268,6.39747338,167.0,166.93,20.9656]
[1721912961450,5.988,167.0,166.94,5.9899]
[1721912961833,5.9884,166.99,166.93,14.9755]
[1721912962152,5.988,167.0,166.93,20.9659]
[1721912962343,5.9876,167.01,166.94,5.9901]
[1721912962851,45.0,167.0,166.94,5.9901]
[1721912963040,50.988,167.0,166.94,5.9901]
[1721912963575,388.24030919,167.02,166.9,1.1977935]
[1721912963774,5.988,167.0,166.93,5.9905]
[1721912964055,394.22790919,167.02,166.94,5.99]
[1721912964265,394.22790919,167.02,166.98,5.9887]
[1721912964266,388.24030919,167.02,166.98,5.9887]
[1721912964426,388.24030919,167.02,166.97,5.989]
[1721912964631,388.24030919,167.02,166.98,5.9886]
[1721912964869,388.24030919,167.02,166.99,5.988]
[1721912965033,27.59,167.07,167.0,5.9879]
[1721912965230,27.59,167.07,167.0,1.1974214]
[1721912965561,33.5755,167.07,167.0,7.1850214]
[1721912965856,5.9855,167.07,167.01,7.18479526]
[1721912966058,5.9855,167.07,167.01,5.9874]
[1721912966365,5.9848,167.09,167.02,5.9872]
[1721912966565,6.2266,167.12,167.04,5.9864]
[1721912967157,36.94019797,167.13,167.05,15.3274]
[1721912967373,5.9841,167.11,167.05,22.51064579]
[1721912967872,389.2,167.15,167.05,16.5244214]
[1721912968177,389.2,167.17,167.09,14.9612]
[1721912968357,5.9827,167.15,167.09,14.9612]
[1721912968675,5.9827,167.15,167.09,20.9458]
[1721912968974,389.2,167.17,167.11,5.984]
[1721912969160,389.2,167.17,167.09,14.9612]
[1721912969549,5.9831,167.14,167.06,14.9646]
[1721912970080,389.2,167.17,167.05,15.3274]
[1721912970081,31.42947338,167.16,167.05,15.3274]
[1721912970247,0.40947338,167.16,167.05,15.3274]
[1721912970648,14.9576,167.14,167.05,15.3274]
[1721912970847,45.40947338,167.13,167.05,15.3274]
[1721912971052,45.0,167.13,167.05,15.3274]
[1721912971257,395.1822,167.17,167.06,1.19676812]
[1721912971551,0.40947338,167.16,167.05,15.3274]
[1721912971748,0.40947338,167.16,167.08,5.9848]
[1721912971954,31.02,167.13,167.04,6.1406]
[1721912972169,5.9849,167.09,167.04,6.1406]
[1721912972349,0.40947338,167.12,167.04,6.1406]
[1721912972545,5.9837,167.12,167.06,5.9857]
[1721912974050,389.2,167.18,167.08,14.9628]
[1721912974680,5.9823,167.16,167.1,5.9841]
[1721912974885,5.9823,167.16,167.11,15.9046]
[1721912975090,389.2,167.18,167.11,32.06139913]
[1721912975394,389.2,167.18,167.11,30.8647]
[1721912975764,389.2,167.21,167.11,30.8647]
[1721912976260,0.40947338,167.2,167.11,30.8647]
[1721912976466,5.9822,167.17,167.11,36.8484]
[1721912976667,389.2,167.21,167.13,14.9575]
[1721912976870,389.2,167.21,167.11,15.9046]
[1721912976871,5.9823,167.16,167.11,15.9046]
[1721912977077,5.9819,167.17,167.11,21.8886]
[1721912977586,5.9816,167.18,167.12,5.9836]
[1721912977790,389.2,167.23,167.17,5.9818]
[1721912977791,395.1798,167.23,167.17,5.9818]
[1721912978096,395.1798,167.23,167.13,57.77649363]
[1721912978097,389.2,167.23,167.13,57.77649363]
[1721912978259,389.2,167.23,167.19,5.981]
[1721912978465,389.2,167.23,167.16,14.9557]
[1721912979192,395.1798,167.23,167.17,5.9818]
[1721912979896,389.2,167.23,167.18,14.9532]
[1721912980069,389.2,167.23,167.18,20.9344]
[1721912980381,31.02,167.28,167.18,20.9347]
[1721912980382,5.9794,167.24,167.18,20.9347]
[1721912980602,5.9798,167.23,167.18,14.9532]
[1721912981191,0.40947338,167.22,167.15,5.9824]
[1721912981360,5.9808,167.21,167.15,5.9824]
[1721912981566,0.40947338,167.2,167.15,5.9824]
[1721912981766,6.39047338,167.2,167.14,20.9399]
[1721912981984,5.981,167.2,167.14,20.9399]
[1721912982166,5.9805,167.21,167.15,5.9825]
[1721912982383,51.39037338,167.2,167.14,20.9399]
[1721912982588,0.40947338,167.19,167.13,6.6638]
[1721912983098,0.40947338,167.19,167.11,30.8645]
[1721912983415,45.0,167.2,167.15,5.9826]
[1721912983912,51.39027338,167.2,167.14,5.9829]
[1721912984202,5.9812,167.19,167.13,14.9575]
[1721912984610,45.40947338,167.18,167.12,5.9835]
[1721912984811,45.40947338,167.17,167.11,15.9046]
[1721912985018,5.9828,167.15,167.1,14.9609]
[1721912985193,5.9819,167.17,167.11,5.9839]
[1721912985509,45.0,167.16,167.11,5.9839]
[1721912986032,6.4288,167.2,167.12,14.9587]
[1721912986221,45.0,167.19,167.14,5.9829]
[1721912986511,45.0,167.19,167.15,5.9825]
[1721912986716,389.2,167.21,167.16,5.9822]
[1721912987006,395.1805,167.21,167.15,5.9825]
[1721912987320,0.40947338,167.2,167.14,14.9568]
[1721912987493,395.1805,167.21,167.15,5.9825]
[1721912987696,5.9813,167.19,167.14,14.9568]
[1721912987994,0.40947338,167.18,167.05,2.32113989]
[1721912988202,5.983,167.14,167.08,5.985]
[1721912988395,5.983,167.14,167.05,2.32113989]
[1721912988396,45.40947338,167.13,167.09,5.9847]
[1721912988602,45.0,167.14,167.07,14.9635]
[1721912988898,45.40947338,167.14,167.06,16.4232]
[1721912989106,5.9834,167.13,167.08,5.9851]
[1721912989314,45.40947338,167.12,167.06,31.3873]
[1721912989492,0.40947338,167.16,167.11,5.984]
[1721912989690,389.2,167.18,167.12,5.9836]
[1721912989891,9.64817078,167.2,167.14,5.9827]
[1721912990113,5.9808,167.2,167.15,5.9826]
[1721912990298,5.9808,167.2,167.14,5.9829]
[1721912990494,6.39027338,167.2,167.14,5.9829]
[1721912990810,395.1804,167.22,167.16,5.9819]
[1721912991120,6.39017338,167.21,167.15,20.9384]
[1721912991417,6.39027338,167.2,167.15,14.9559]
[1721912992117,0.40947338,167.2,167.15,20.9384]
[1721912992600,45.40947338,167.2,167.15,20.9384]
[1721912992785,51.39037338,167.2,167.15,20.9384]
[1721912992984,45.40947338,167.2,167.12,14.9589]
[1721912993190,5.9819,167.17,167.12,5.9837]
[1721912993390,5.9819,167.17,167.07,6.5128]
[1721912993391,45.40947338,167.16,167.11,5.9839]
[1721912993617,51.39177338,167.16,167.11,5.9839]
[1721912993797,45.40947338,167.16,167.09,14.9616]
[1721912993990,5.983,167.14,167.08,5.9849]
[1721912994186,45.40947338,167.13,167.06,31.3877]
[1721912994390,45.0,167.12,167.06,16.4232]
[1721912994695,0.40947338,167.11,167.03,6.0289]
[1721912995107,6.39377338,167.11,167.05,20.9511]
[1721912995427,45.40947338,167.1,167.06,5.9857]
[1721912996098,45.0,167.11,167.05,14.965]
[1721912996304,45.0,167.11,167.09,5.9846]
[1721912997008,45.0,167.11,167.08,5.985]
[1721912997314,0.40947338,167.13,167.08,5.985]
[1721912997534,6.3677,167.14,167.09,5.9846]
[1721912997729,395.1826,167.15,167.1,5.9843]
[1721912997936,389.2,167.15,167.11,5.9839]
[1721912998231,5.9823,167.16,167.1,5.9843]
[1721912998609,5.983,167.14,167.09,20.9459]
[1721912998925,5.9831,167.14,167.09,20.9459]
[1721912999124,5.9831,167.14,167.09,14.9613]
[1721912999503,5.9827,167.15,167.09,14.9613]
[1721912999818,5.9827,167.15,167.1,5.9843]
[1721913000219,6.39177338,167.16,167.1,5.9843]
[1721913000420,0.40947338,167.16,167.11,5.984]
[1721913000816,5.9829,167.15,167.09,20.946]
[1721913001017,45.40947338,167.14,167.03,6.0289]
[1721913001329,45.0,167.16,167.06,5.9855]
[1721913001330,5.984,167.12,167.06,5.9855]
[1721913001525,5.9832,167.14,167.03,6.0289]
[1721913001725,45.0,167.16,167.05,29.9306]
[1721913001926,389.2,167.17,167.05,29.9306]
[1721913001927,389.2,167.17,167.05,51.12739833]
[1721913002229,389.2,167.17,167.13,5.9831]
[1721913002407,5.9816,167.18,167.13,5.9831]
[1721913003138,0.40947338,167.17,167.12,14.9589]
[1721913003432,15.36227338,167.2,167.09,14.9618]
[1721913003731,5.9822,167.17,167.11,5.984]
[1721913003927,45.0,167.16,167.11,5.984]
[1721913004243,45.0,167.16,167.12,5.9836]
[1721913004410,6.39027338,167.2,167.14,5.9828]
[1721913004611,395.1808,167.21,167.13,14.9576]
[1721913004814,401.5694,167.22,167.16,5.9822]
[1721913005130,5.9805,167.21,167.15,20.9386]
[1721913005336,0.40947338,167.2,167.15,14.9561]
[1721913005534,5.9812,167.19,167.13,5.983]
[1721913005847,5.9812,167.19,167.14,5.9829]
[1721913006411,395.5892,167.22,167.11,15.2663]
[1721913006638,389.2,167.22,167.2,5.9808]
[1721913006935,5.9792,167.25,167.2,5.9808]
[1721913007318,5.9794,167.24,167.19,20.9337]
[1721913007621,5.979,167.25,167.19,20.9337]
[1721913008133,5.9795,167.24,167.19,20.9337]
[1721913009013,5.9791,167.25,167.19,20.9337]
[1721913009336,5.9791,167.25,167.2,5.9807]
[1721913009636,395.1787,167.26,167.21,5.9804]
[1721913010222,5.9787,167.26,167.21,5.9804]
[1721913010409,0.40947338,167.26,167.19,14.9526]
[1721913011036,5.9798,167.23,167.18,5.9814]
[1721913011248,0.40947338,167.22,167.18,5.9814]
[1721913011532,5.9807,167.21,167.16,14.9552]
[1721913011831,45.0,167.2,167.15,5.9826]
[1721913012032,0.40947338,167.25,167.16,5.9822]
[1721913012239,27.53,167.22,167.15,20.9386]
[1721913012446,27.53,167.22,167.13,5.983]
[1721913012447,5.9815,167.18,167.13,5.983]
[1721913012647,5.9815,167.18,167.11,15.2663]
[1721913012648,0.40947338,167.2,167.11,30.2259]
[1721913012855,0.40947338,167.2,167.14,5.9829]
[1721913013059,5.9811,167.2,167.15,5.9824]
[1721913013351,5.9811,167.2,167.13,14.9578]
[1721913013352,50.9805,167.21,167.16,5.9822]
[1721913013558,50.9805,167.21,167.15,5.9825]
[1721913013722,50.9805,167.21,167.16,5.9822]
[1721913013921,395.1798,167.23,167.15,14.9562]
[1721913014354,389.2,167.23,167.17,14.9543]
[1721913014853,389.2,167.23,167.18,5.9815]
[1721913015026,389.2,167.23,167.19,5.9811]
[1721913015748,0.8024917,167.27,167.17,31.10492447]
[1721913015954,0.8024917,167.27,167.23,14.949]
[1721913016135,0.8024917,167.27,167.23,20.9287]
[1721913017153,0.8024917,167.27,167.23,14.949]
[1721913017548,0.8024917,167.27,167.26,5.9787]
[1721913017753,0.8024917,167.27,167.25,20.926]
[1721913017957,6.7810917,167.27,167.22,14.9499]
[1721913018553,5.9787,167.26,167.21,5.9801]
[1721913018747,5.9788,167.26,167.2,15.1938]
[1721913018927,6.38827338,167.26,167.2,15.1938]
[1721913019135,5.9788,167.26,167.2,15.1938]
[1721913019339,6.7807917,167.27,167.21,5.9804]
[1721913019650,0.8024917,167.27,167.22,5.98]
[1721913019834,46.21196508,167.27,167.22,5.98]
[1721913020353,5.9791,167.25,167.21,14.9507]
[1721913020657,45.8024917,167.27,167.18,14.9535]
[1721913020849,27.93947338,167.25,167.15,16.5584]
[1721913021049,27.93947338,167.25,167.11,16.3734]
[1721913021050,27.53,167.22,167.11,16.3734]
[1721913021246,5.9816,167.18,167.12,14.959]
[1721913021432,5.9823,167.16,167.11,16.3734]
[1721913021630,6.39147338,167.17,167.11,16.3734]
[1721913021851,5.982,167.17,167.11,22.3573]
[1721913022058,5.9816,167.18,167.11,31.333]
[1721913022263,5.9807,167.21,167.16,5.9821]
[1721913022553,45.40947338,167.2,167.14,5.9829]
[1721913022730,5.9812,167.19,167.13,20.9407]
[1721913022937,45.40947338,167.18,167.13,20.9407]
[1721913023157,0.40947338,167.17,167.06,16.5758]
[1721913023325,416.73,167.16,167.06,16.5758]
[1721913023526,5.9832,167.14,167.06,16.5758]
[1721913023729,45.40947338,167.15,167.06,16.5758]
[1721913023730,0.40947338,167.13,167.06,16.5758]
[1721913023965,0.40947338,167.13,167.06,31.5398]
[1721913024133,0.40947338,167.13,167.06,14.964]
[1721913024335,0.40947338,167.13,167.02,14.9674]
[1721913024831,0.40947338,167.13,167.03,20.0]
[1721913025042,5.9843,167.11,167.05,5.9861]
[1721913025237,51.39397338,167.1,167.04,5.9865]
[1721913025647,50.9845,167.1,167.05,5.9861]
[1721913025842,0.40947338,167.14,167.07,5.9852]
[1721913026136,51.39247338,167.14,167.08,5.9848]
[1721913026349,395.1827,167.15,167.09,5.9847]
[1721913026737,395.1827,167.15,167.09,20.946]
[1721913026933,5.983,167.14,167.09,14.9613]
[1721913027354,389.2,167.15,167.09,20.946]
[1721913027555,45.0,167.14,167.1,5.9844]
[1721913027853,45.0,167.14,167.09,14.9613]
[1721913028041,50.9831,167.14,167.09,14.9613]
[1721913028352,45.0,167.14,167.09,20.946]
[1721913028556,50.9827,167.15,167.09,20.946]
[1721913029076,45.0,167.15,167.1,5.9843]
[1721913029439,5.9819,167.17,167.11,5.984]
[1721913029643,389.2,167.18,167.16,5.9822]
[1721913029841,5.981,167.2,167.15,14.9558]
[1721913030263,0.40947338,167.2,167.1,21.5798]
[1721913030436,0.40947338,167.2,167.06,1.19648619]
[1721913030437,0.40947338,167.2,167.08,5.9848]
[1721913030766,0.40947338,167.2,167.06,1.19673807]
[1721913030767,5.9823,167.16,167.1,5.9843]
[1721913030969,0.40947338,167.18,167.08,5.9848]
[1721913031138,0.40947338,167.18,167.06,14.9643]
[1721913031343,5.9838,167.12,167.07,20.0]
[1721913031644,5.9843,167.11,167.06,14.9643]
[1721913031843,50.9844,167.1,167.05,5.9861]
[1721913032144,45.0,167.1,167.06,5.9858]
[1721913032452,45.0,167.1,167.06,5.9855]
[1721913032650,45.0,167.1,167.07,5.9854]
[1721913032854,6.0179,167.14,167.01,22.3395]
[1721913032855,0.40947338,167.09,167.02,14.9681]
[1721913033253,0.40947338,167.09,167.03,5.9866]
[1721913033456,45.40947338,167.09,167.04,5.9865]
[1721913034050,45.0,167.1,167.05,5.9861]
[1721913034369,45.40947338,167.1,167.05,5.9861]
[1721913034542,51.39387338,167.1,167.04,5.9865]
[1721913035164,50.9844,167.1,167.04,5.9865]
[1721913036069,0.40947338,167.09,167.05,14.9654]
[1721913036365,45.0,167.1,167.05,14.9654]
[1721913036569,0.40947338,167.12,167.05,14.9654]
[1721913036959,6.39347338,167.12,167.06,5.9856]
[1721913037148,45.0,167.11,167.06,5.9856]
[1721913037460,0.40947338,167.1,167.06,5.9856]
[1721913037863,389.2,167.13,167.09,5.9847]
[1721913038063,389.2,167.13,167.1,5.9844]
[1721913038374,389.2,167.13,167.12,5.9837]
[1721913038563,389.2,167.13,167.12,20.943]
[1721913039060,389.2,167.13,167.1,16.0827]
[1721913039061,5.9801,167.22,167.16,5.982]
[1721913039377,395.7098,167.23,167.1,62.2884]
[1721913039576,395.7098,167.23,167.19,14.9523]
[1721913039577,389.2,167.23,167.19,14.9523]
[1721913039873,0.8024917,167.27,167.22,14.9502]
[1721913040042,0.8024917,167.27,167.23,5.9796]
[1721913040969,0.8024917,167.27,167.18,22.0477]
[1721913040970,0.40947338,167.26,167.19,20.9337]
[1721913041266,6.38847338,167.26,167.19,5.981]
[1721913041464,6.38847338,167.26,167.18,21.8235]
[1721913041465,0.40947338,167.26,167.18,21.8235]
[1721913041670,0.40947338,167.26,167.16,14.9556]
[1721913041871,5.9801,167.22,167.16,20.9375]
[1721913042052,5.9801,167.22,167.17,5.9819]
[1721913042374,45.40947338,167.21,167.17,5.9819]
[1721913042545,0.40947338,167.23,167.16,14.9556]
[1721913042743,0.40947338,167.23,167.18,20.9347]
[1721913042964,0.40947338,167.23,167.15,5.9823]
[1721913042965,5.9805,167.21,167.15,5.9823]
[1721913043142,45.0,167.24,167.16,14.9551]
[1721913043369,6.38927338,167.23,167.16,14.9551]
[1721913043675,50.9802,167.22,167.16,20.9373]
[1721913043973,0.40947338,167.21,167.16,20.9373]
[1721913044156,51.38997338,167.21,167.16,14.9551]
[1721913044356,0.40947338,167.23,167.19,5.9811]
[1721913044566,434.2,167.24,167.16,14.9551]
[1721913044755,5.9802,167.22,167.16,20.9373]
[1721913045076,51.39007338,167.21,167.16,14.9551]
[1721913045371,45.0,167.2,167.16,14.9551]
[1721913045761,45.40947338,167.2,167.16,14.9551]
[1721913046075,51.39027338,167.2,167.14,5.983]
[1721913046656,5.9812,167.19,167.13,20.9414]
[1721913046875,45.40947338,167.18,167.13,20.9414]
[1721913047050,389.2,167.21,167.16,5.982]
[1721913047261,45.0,167.2,167.13,29.9153]
[1721913047452,389.2,167.21,167.2,5.9808]
[1721913047654,6.4654,167.26,167.21,14.9505]
[1721913047953,0.40947338,167.25,167.2,5.9808]
[1721913048157,6.38847338,167.25,167.19,5.981]
[1721913048379,5.9794,167.24,167.19,5.981]
[1721913048672,0.40947338,167.23,167.19,5.981]
[1721913049177,45.40947338,167.24,167.2,5.9807]
[1721913049480,45.0,167.25,167.22,5.9801]
[1721913049980,0.40947338,167.24,167.2,5.9808]
[1721913050685,1.21196508,167.27,167.2,14.9513]
[1721913050983,0.40947338,167.26,167.21,5.9802]
[1721913051363,0.8024917,167.27,167.22,14.9495]
[1721913051590,1.21196508,167.27,167.24,5.9794]
[1721913051882,0.8024917,167.27,167.24,5.9794]
[1721913052080,0.8024917,167.27,167.22,20.9293]
[1721913052290,0.8024917,167.27,167.24,5.9791]
[1721913053079,0.8024917,167.27,167.25,5.9788]
[1721913053283,0.8024917,167.27,167.26,5.9787]
[1721913055678,0.8024917,167.27,167.24,14.948]
[1721913055872,6.7808917,167.27,167.21,20.9316]
[1721913056076,6.7808917,167.27,167.19,12.4843]
[1721913056077,5.9793,167.25,167.19,12.4843]
[1721913056394,0.8024917,167.27,167.22,5.9799]
[1721913056566,46.21196508,167.27,167.22,5.9799]
[1721913056768,6.38817338,167.26,167.2,20.9322]
[1721913056974,45.0,167.25,167.21,5.9804]
[1721913057281,45.8024917,167.27,167.2,14.9514]
[1721913057591,46.21196508,167.27,167.22,14.9498]
[1721913057891,0.8024917,167.27,167.23,5.9797]
[1721913058191,0.8024917,167.27,167.22,20.9299]
[1721913058192,1.21196508,167.27,167.22,20.9299]
[1721913058573,7.19036508,167.27,167.22,14.9498]
[1721913058882,45.40947338,167.26,167.19,14.9529]
[1721913059058,1.21196508,167.27,167.21,5.9804]
[1721913059262,7.19056508,167.27,167.21,5.9804]
[1721913059464,7.19056508,167.27,167.19,14.9529]
[1721913059465,45.0,167.26,167.19,14.9529]
[1721913059667,1.21196508,167.27,167.19,14.9529]
[1721913059888,0.40947338,167.26,167.21,5.9803]
[1721913060096,45.0,167.26,167.21,5.9803]
[1721913060281,45.0,167.26,167.23,5.9796]
[1721913060482,46.21196508,167.27,167.23,5.9796]
[1721913060669,46.21196508,167.27,167.21,14.9507]
[1721913060670,46.21196508,167.27,167.22,5.98]
[1721913061573,46.21196508,167.27,167.23,5.9797]
[1721913062071,1.21196508,167.27,167.23,5.9797]
[1721913062468,1.21196508,167.27,167.22,5.98]
[1721913063088,1.21196508,167.27,167.23,5.9797]
[1721913064088,1.21196508,167.27,167.22,5.98]
[1721913064402,1.21196508,167.27,167.23,5.9796]
[1721913064862,0.8024917,167.27,167.23,14.9486]
[1721913065065,0.8024917,167.27,167.26,5.9787]
[1721913066883,389.2,167.38,167.33,5.9759]
[1721913067093,12.0788,167.39,167.33,5.9759]
[1721913067789,5.9748,167.37,167.32,20.9173]
[1721913067972,5.9763,167.33,167.28,20.9221]
[1721913068174,5.9762,167.33,167.27,5.978]
[1721913068377,5.9758,167.35,167.29,5.9775]
[1721913068565,45.0,167.34,167.3,5.977]
[1721913068980,45.0,167.35,167.31,5.9768]
[1721913069367,45.0,167.35,167.3,5.9772]
[1721913069684,45.0,167.35,167.29,14.9436]
[1721913069899,27.5,167.38,167.29,14.9436]
[1721913070192,45.40947338,167.37,167.3,5.9769]
[1721913070485,45.0,167.37,167.29,20.9211]
[1721913070678,6.38487338,167.36,167.3,5.9772]
[1721913070878,45.0,167.35,167.3,5.9772]
[1721913071075,51.38507338,167.35,167.3,5.9772]
[1721913071578,33.88417338,167.38,167.31,14.9417]
[1721913071783,0.40947338,167.38,167.33,5.9759]
[1721913071966,6.1045,167.39,167.33,14.9398]
[1721913072170,395.1737,167.4,167.33,14.9398]
[1721913072669,5.9734,167.41,167.36,5.975]
[1721913073177,12.1756,167.43,167.37,5.9746]
[1721913073379,6.61237338,167.43,167.37,5.9746]
[1721913073596,0.40947338,167.42,167.35,14.9381]
[1721913073888,5.9741,167.39,167.34,5.9756]
[1721913074091,5.9741,167.39,167.29,29.8873]
[1721913074092,0.40947338,167.38,167.26,43.4511]
[1721913074270,5.9752,167.36,167.28,14.9443]
[1721913074471,0.40947338,167.39,167.34,5.9756]
[1721913074800,45.0,167.39,167.34,5.9756]
[1721913075092,45.40947338,167.39,167.32,20.9173]
[1721913075396,45.0,167.38,167.32,14.941]
[1721913075567,51.38337338,167.4,167.32,14.941]
[1721913075769,6.38357338,167.39,167.33,5.9759]
[1721913075985,45.0,167.38,167.33,5.9759]
[1721913076175,50.9744,167.38,167.33,5.9759]
[1721913076378,45.0,167.38,167.34,5.9758]
[1721913076578,50.9744,167.38,167.33,5.9761]
[1721913076803,45.0,167.38,167.32,14.941]
[1721913077099,45.0,167.38,167.29,29.8877]
[1721913077100,6.38287338,167.41,167.34,14.939]
[1721913077289,5.9741,167.39,167.34,20.9146]
[1721913077477,5.9739,167.4,167.34,14.939]
[1721913077680,0.40947338,167.39,167.34,20.9147]
[1721913078073,0.40947338,167.39,167.34,14.939]
[1721913078278,0.40947338,167.4,167.36,14.9374]
[1721913078594,6.2029,167.43,167.33,14.9401]
[1721913078790,45.40947338,167.42,167.33,14.9401]
[1721913078982,45.40947338,167.42,167.29,14.9434]
[1721913079189,5.9748,167.37,167.32,5.9764]
[1721913079478,5.9748,167.37,167.31,5.9768]
[1721913079880,5.9748,167.37,167.32,5.9764]
[1721913080087,5.9748,167.37,167.31,5.9768]
[1721913080902,5.9748,167.37,167.32,5.9765]
[1721913081073,0.40947338,167.4,167.32,5.9765]
[1721913081074,0.40947338,167.36,167.32,5.9765]
[1721913081275,45.0,167.37,167.34,5.9758]
[1721913081680,6.61237338,167.43,167.34,14.9389]
[1721913081888,0.40947338,167.42,167.34,14.9389]
[1721913082400,5.9736,167.41,167.36,5.9751]
[1721913082715,5.9736,167.41,167.34,14.9389]
[1721913082716,0.40947338,167.4,167.35,5.9754]
[1721913082894,45.40947338,167.4,167.35,5.9754]
[1721913084325,45.40947338,167.4,167.34,14.9389]
[1721913084326,6.61237338,167.43,167.33,29.8806]
[1721913084616,28.3024917,167.44,167.35,15.8836]
[1721913084617,0.8024917,167.44,167.35,15.8836]
[1721913084800,0.8024917,167.44,167.43,5.9726]
[1721913085379,0.8024917,167.44,167.42,20.9047]
[1721913085715,0.8024917,167.44,167.42,14.9318]
[1721913086006,0.8024917,167.44,167.42,20.9047]
[1721913087078,0.8024917,167.44,167.43,5.9726]
[1721913087928,0.8024917,167.44,167.42,20.9047]
[1721913088127,0.8024917,167.44,167.37,29.8723]
[1721913088327,0.8024917,167.44,167.4,5.9735]
[1721913088840,0.8024917,167.44,167.41,5.9732]
[1721913089730,0.8024917,167.44,167.42,5.9728]
[1721913090332,0.8024917,167.44,167.41,14.9327]
[1721913090333,0.8024917,167.44,167.43,5.9726]
[1721913092838,0.8024917,167.44,167.43,25.9726]
[1721913093440,0.8024917,167.44,167.43,27.16679635]
[1721913093817,0.8024917,167.44,167.43,25.9726]
[1721913095827,0.8024917,167.44,167.43,27.16665946]
[1721913096036,0.8024917,167.44,167.43,25.9726]
[1721913096440,5.9691,167.53,167.47,5.9711]
[1721913097336,5.9687,167.54,167.49,5.9704]
[1721913097519,45.0,167.53,167.49,5.9704]
[1721913097719,7.05897338,167.55,167.49,5.9704]